bitfinex-derivatives/quotes_ETHF0:USTF0_20240923
["timestamp","ask_amount","ask_price","bid_price","bid_amount"]
[1727106340937,2.03738687,2680.0,2679.4,7.1964]
[1727106340938,0.57311,2680.0,2679.8,0.37314]
[1727106341128,0.2,2680.0,2679.8,0.37314]
[1727106341331,1.66427687,2680.0,2679.9,0.37312]
[1727106341637,1.66427687,2680.0,2679.8,0.37313]
[1727106342142,0.2,2680.0,2679.9,0.37312]
[1727106342336,1.66427687,2680.0,2679.9,0.37312]
[1727106342529,0.2,2680.0,2679.9,0.37312]
[1727106345132,0.59178747,2680.0,2679.8,0.37313]
[1727106345533,0.59178747,2680.0,2679.9,0.42434269]
[1727106345935,0.59178747,2680.0,2679.9,0.05122269]
[1727106346734,0.21866747,2680.0,2679.9,0.42434269]
[1727106347436,0.59177747,2680.0,2679.9,0.42434269]
[1727106347638,0.21866747,2680.0,2679.9,0.42434269]
[1727106347941,0.22803271,2680.0,2679.9,0.42434269]
[1727106349142,0.23739795,2680.0,2679.9,0.42434269]
[1727106349840,0.23739795,2680.0,2679.9,3.63214269]
[1727106350036,0.23739795,2680.0,2679.9,8.29616269]
[1727106350231,1.46427687,2680.4,2680.3,0.37307]
[1727106350447,1.83731687,2680.6,2680.2,7.9708]
[1727106350643,1.83731687,2680.6,2680.4,0.42427269]
[1727106351036,0.37304,2680.5,2680.4,0.42427269]
[1727106351336,0.37303,2680.6,2680.4,0.42427269]
[1727106351541,1.46427687,2680.7,2680.2,7.9708]
[1727106351739,0.37303,2680.6,2680.5,0.05122269]
[1727106351939,1.83730687,2680.6,2680.5,0.05122269]
[1727106352246,0.37303,2680.6,2680.5,0.05122269]
[1727106354432,0.37302,2680.7,2680.5,0.05122269]
[1727106354647,2.22197687,2680.8,2680.6,0.05122269]
[1727106354843,0.37301,2680.7,2680.6,0.42424269]
[1727106355143,0.7577,2680.8,2680.7,0.37301]
[1727106355144,1.1307,2680.8,2680.7,0.37301]
[1727106355338,1.30555,2680.7,2680.6,0.05122269]
[1727106359146,0.93264,2680.4,2680.0,7.1761]
[1727106359443,0.3731,2680.1,2680.0,0.42143896]
[1727106359636,1.2925,2680.3,2680.0,0.04833896]
[1727106359837,0.3945,2680.2,2680.0,0.04833896]
[1727106360047,0.76759,2680.2,2680.1,0.3731]
[1727106360441,0.3945,2680.2,2680.1,0.3731]
[1727106360944,0.37307,2680.4,2680.3,0.37307]
[1727106361535,1.32708,2680.6,2680.0,3.30081896]
[1727106361749,0.76754,2680.6,2680.4,0.37304]
[1727106361941,0.76754,2680.6,2680.1,4.14054]
[1727106361942,0.37306,2680.4,2680.3,0.37307]
[1727106362441,0.37308,2680.2,2680.1,3.58089]
[1727106362744,0.37308,2680.2,2680.1,3.2078]
[1727106362745,1.30579,2680.2,2680.1,3.2078]
[1727106362947,1.30579,2680.2,2679.9,0.3615]
[1727106362948,0.37311,2680.0,2679.9,0.37312]
[1727106363149,0.389,2680.3,2680.0,0.37311]
[1727106363150,0.743,2680.1,2680.0,0.37311]
[1727106363338,0.37311,2680.0,2679.9,0.37311]
[1727106363545,0.37312,2679.9,2679.8,5.62093]
[1727106363747,0.361,2680.0,2679.9,0.37312]
[1727106364140,0.73411,2680.0,2679.9,4.10432]
[1727106364337,0.73411,2680.0,2679.9,3.7312]
[1727106364559,0.37312,2679.9,2679.8,5.62093]
[1727106364855,0.37312,2679.9,2679.8,5.62094]
[1727106365046,0.37312,2679.9,2679.8,9.35214]
[1727106365345,0.37312,2679.9,2679.5,0.93295]
[1727106365346,0.37317,2679.6,2679.5,3.2078]
[1727106365537,0.93286,2679.8,2679.5,3.2078]
[1727106365538,0.37316,2679.7,2679.5,3.2078]
[1727106365848,0.389,2679.8,2679.6,0.37316]
[1727106366046,0.389,2679.8,2679.7,0.37315]
[1727106366242,0.361,2680.0,2679.9,0.37312]
[1727106367140,0.73411,2680.0,2679.9,0.37312]
[1727106368144,0.361,2680.0,2679.9,0.37312]
[1727106368344,0.73411,2680.0,2679.9,0.37312]
[1727106368657,0.361,2680.0,2679.9,0.37312]
[1727106368847,0.73411,2680.0,2679.9,0.37312]
[1727106369043,0.361,2680.0,2679.7,2.04]
[1727106369255,0.37313,2679.9,2679.8,0.37313]
[1727106369455,0.37313,2679.9,2679.6,0.6432]
[1727106369652,0.37313,2679.9,2679.8,0.37314]
[1727106371148,0.37314,2679.8,2679.7,0.37314]
[1727106371349,0.361,2680.0,2679.5,3.2078]
[1727106371559,0.37317,2679.6,2679.5,3.58097]
[1727106371753,0.3956,2679.8,2679.5,3.2078]
[1727106371956,0.37316,2679.7,2679.6,0.37316]
[1727106372254,0.37315,2679.7,2679.6,0.37316]
[1727106372646,0.3956,2679.8,2679.5,5.2478]
[1727106373050,0.76875,2679.8,2679.6,0.37315]
[1727106373448,0.3956,2679.8,2679.5,5.2478]
[1727106373648,0.37317,2679.6,2679.5,5.62098]
[1727106373857,1.32846,2679.8,2679.6,0.37317]
[1727106373858,0.37316,2679.7,2679.6,0.37317]
[1727106374057,0.3956,2679.8,2679.7,0.37315]
[1727106374254,0.37314,2679.8,2679.7,0.37315]
[1727106374649,0.93282,2679.9,2679.5,5.2478]
[1727106374851,0.93282,2679.9,2679.6,0.37317]
[1727106375051,0.37315,2679.7,2679.5,3.58097]
[1727106375357,0.93285,2679.8,2679.5,3.58097]
[1727106375358,0.37317,2679.6,2679.5,3.58097]
[1727106375560,0.37317,2679.6,2679.5,3.2078]
[1727106375855,0.93289,2679.7,2679.4,0.37319]
[1727106376058,0.3715,2679.5,2679.4,0.37319]
[1727106376456,0.93286,2679.8,2679.3,7.37929382]
[1727106376762,0.93286,2679.8,2679.5,0.37318]
[1727106376763,0.37318,2679.6,2679.5,0.37318]
[1727106378157,0.3715,2679.8,2679.7,0.37315]
[1727106378768,0.74464,2679.8,2679.7,0.37315]
[1727106378958,0.37316,2679.7,2679.6,0.37316]
[1727106379156,0.37317,2679.6,2679.5,3.2078]
[1727106379368,2.04,2679.6,2678.8,3.2078]
[1727106379579,0.37326,2678.9,2678.8,3.2078]
[1727106379760,2.39729687,2679.4,2678.8,3.2078]
[1727106379761,0.37326,2679.0,2678.8,3.58108]
[1727106379953,0.39,2679.0,2678.9,0.37326]
[1727106380154,1.84947687,2679.5,2678.9,5.7728]
[1727106380360,0.37321,2679.3,2678.9,2.04]
[1727106380560,0.39,2679.4,2678.9,2.04]
[1727106380858,0.39,2679.4,2679.3,0.37321]
[1727106381064,1.46427687,2679.6,2679.5,0.37318]
[1727106381363,0.37318,2679.6,2679.4,0.37319]
[1727106381555,0.37317,2679.6,2679.2,2.04]
[1727106381759,0.37318,2679.5,2679.4,0.37319]
[1727106381955,0.37318,2679.5,2679.3,0.3732]
[1727106382161,1.46427687,2679.6,2679.3,0.3732]
[1727106382355,0.37319,2679.5,2679.3,0.3732]
[1727106383263,1.83746687,2679.5,2679.3,0.3732]
[1727106384266,1.46427687,2679.6,2679.2,2.04]
[1727106384583,0.37318,2679.6,2679.4,0.37319]
[1727106384758,0.37318,2679.6,2679.3,0.3732]
[1727106384759,0.37318,2679.5,2679.3,0.3732]
[1727106384963,2.20767687,2679.7,2679.2,2.04]
[1727106385161,1.83744687,2679.6,2679.4,0.37319]
[1727106385363,1.46427687,2679.6,2679.5,0.37318]
[1727106385668,1.83744687,2679.6,2679.4,0.37319]
[1727106385857,1.46427687,2679.7,2679.6,0.37317]
[1727106386059,1.46427687,2680.0,2679.9,0.37312]
[1727106386258,1.46427687,2680.0,2679.7,0.93289]
[1727106386259,1.84807687,2680.1,2680.0,0.37311]
[1727106386565,1.46427687,2680.3,2680.1,0.3731]
[1727106386767,1.46427687,2680.5,2680.4,0.37305]
[1727106386970,1.46427687,2680.5,2680.4,3.34569]
[1727106387170,0.3749,2680.6,2680.5,0.37304]
[1727106387171,1.46427687,2680.6,2680.5,0.37304]
[1727106387469,1.46427687,2680.6,2680.5,4.10344]
[1727106387862,1.46427687,2680.7,2680.6,0.37303]
[1727106388065,1.83917687,2681.1,2680.6,8.4774]
[1727106388267,0.37301,2680.8,2680.6,5.12002]
[1727106388460,0.37301,2680.8,2680.6,4.747]
[1727106388669,1.83725687,2681.0,2680.6,4.747]
[1727106388869,1.83725687,2681.0,2680.8,0.373]
[1727106389168,1.46427687,2680.9,2680.8,0.37299]
[1727106389370,1.46427687,2681.0,2680.6,4.747]
[1727106389570,1.46427687,2681.0,2680.9,0.37299]
[1727106390266,1.83917687,2681.1,2680.7,2.4214]
[1727106390469,0.37299,2680.9,2680.6,3.2078]
[1727106390771,0.37298,2681.0,2680.6,3.2078]
[1727106390969,1.46427687,2681.0,2680.4,6.786]
[1727106391268,0.37302,2680.7,2680.5,0.37304]
[1727106391862,0.73962,2680.7,2680.4,0.37305]
[1727106392060,0.73962,2680.7,2680.5,0.37304]
[1727106392471,0.3666,2680.7,2680.4,0.37305]
[1727106392669,0.3666,2680.7,2680.3,3.2078]
[1727106393175,0.37303,2680.6,2680.4,0.37305]
[1727106393370,0.73962,2680.7,2680.5,0.37304]
[1727106393674,0.73962,2680.7,2680.3,3.2078]
[1727106393675,0.37304,2680.6,2680.4,0.37305]
[1727106393969,0.37304,2680.6,2680.3,3.2078]
[1727106393970,0.37305,2680.4,2680.3,3.2078]
[1727106394583,0.37309,2680.2,2680.0,0.37311]
[1727106394771,0.37307,2680.3,2680.1,0.37309]
[1727106395166,0.37306,2680.4,2680.2,0.37308]
[1727106395371,1.82627687,2680.5,2680.2,0.37308]
[1727106395372,0.362,2680.5,2680.2,0.37308]
[1727106395571,0.362,2680.5,2680.2,2.04]
[1727106396076,0.362,2680.5,2680.4,0.37305]
[1727106396278,0.3666,2680.7,2680.6,0.37303]
[1727106396486,0.3666,2680.7,2680.3,0.3753]
[1727106396780,0.37303,2680.6,2680.4,0.37305]
[1727106397083,0.3666,2680.7,2680.6,0.37303]
[1727106397278,1.83257687,2680.9,2680.3,0.3753]
[1727106397472,0.373,2680.8,2680.6,0.37302]
[1727106397670,1.83257687,2680.9,2680.3,1.30796]
[1727106397974,0.3683,2680.9,2680.4,9.9938]
[1727106398179,2.76506687,2680.9,2680.4,7.9538]
[1727106398382,0.37302,2680.7,2680.5,0.37303]
[1727106399177,0.37302,2680.7,2680.1,0.93274]
[1727106399178,2.04,2680.6,2679.9,3.2078]
[1727106399380,0.37312,2679.9,2679.8,0.3624]
[1727106399576,0.37315,2679.7,2679.6,5.2478]
[1727106400085,0.37315,2679.7,2679.6,3.2078]
[1727106400273,1.70464,2679.9,2679.4,0.73559]
[1727106400474,0.73057,2679.6,2679.4,0.3624]
[1727106400675,0.37318,2679.5,2679.4,0.3624]
[1727106400883,0.37319,2679.5,2679.3,2.04]
[1727106401079,0.37319,2679.5,2679.2,14.45321]
[1727106401080,0.3574,2679.6,2679.2,14.08]
[1727106401378,0.37319,2679.5,2679.2,9.70722]
[1727106402488,0.3732,2679.4,2679.2,9.334]
[1727106402785,0.73057,2679.6,2679.3,2.04]
[1727106402984,0.3574,2679.6,2679.3,2.04]
[1727106403182,0.3574,2679.6,2679.5,0.37318]
[1727106403885,0.3574,2679.6,2679.3,2.04]
[1727106404086,0.37319,2679.5,2679.3,2.04]
[1727106404286,0.37319,2679.5,2679.3,2.41321]
[1727106404482,0.73057,2679.6,2679.3,2.41321]
[1727106405091,0.73057,2679.6,2679.3,2.04]
[1727106405092,0.37318,2679.5,2679.3,2.04]
[1727106405291,0.3732,2679.4,2679.2,9.334]
[1727106405585,0.3732,2679.4,2679.1,10.36703]
[1727106406390,0.3732,2679.4,2679.2,0.37322]
[1727106406883,0.37321,2679.3,2679.1,5.62103]
[1727106407288,0.3574,2679.6,2679.1,5.2478]
[1727106407486,0.37321,2679.3,2679.1,5.62104]
[1727106408305,0.37322,2679.3,2679.1,5.2478]
[1727106408594,0.37321,2679.4,2679.1,5.2478]
[1727106408887,0.37322,2679.3,2679.1,5.2478]
[1727106409088,0.3732,2679.4,2679.2,0.37322]
[1727106409481,0.3732,2679.4,2679.1,5.2478]
[1727106409682,0.3732,2679.4,2679.2,0.37322]
[1727106409983,0.76459,2679.5,2679.1,5.2478]
[1727106410186,0.3914,2679.5,2679.1,5.62102]
[1727106410385,0.7346,2679.4,2679.2,0.37322]
[1727106410685,0.37321,2679.3,2679.1,5.62103]
[1727106411991,0.37322,2679.2,2679.1,5.2478]
[1727106412494,0.37322,2679.2,2679.1,3.2078]
[1727106412701,0.37326,2679.0,2678.8,0.37327]
[1727106412987,0.3614,2679.4,2678.7,7.9388]
[1727106412988,0.93304,2679.3,2678.7,7.9388]
[1727106413180,0.37327,2678.9,2678.7,8.31209]
[1727106413385,0.74528,2678.8,2678.7,3.2078]
[1727106413582,0.372,2678.8,2678.7,3.58109]
[1727106414699,0.74528,2678.8,2678.7,3.2078]
[1727106415197,0.372,2678.8,2678.7,3.2078]
[1727106415387,0.372,2678.8,2678.7,3.58109]
[1727106416398,0.37326,2679.0,2678.9,0.37326]
[1727106416592,0.76206,2679.0,2678.9,0.37326]
[1727106416893,2.39724687,2679.5,2678.8,2.04]
[1727106416894,2.39719687,2679.6,2678.8,2.04]
[1727106417108,0.37323,2679.2,2679.0,0.37324]
[1727106417898,0.37324,2679.1,2679.0,0.37324]
[1727106418103,0.3937,2679.3,2679.0,0.37324]
[1727106418104,0.37323,2679.2,2679.0,0.37324]
[1727106418896,0.76692,2679.3,2678.8,2.97319]
[1727106419089,0.3937,2679.3,2679.2,0.37322]
[1727106419391,0.76691,2679.3,2679.1,0.37323]
[1727106419587,0.37322,2679.2,2679.1,0.37323]
[1727106420191,0.37324,2679.1,2679.0,3.58105]
[1727106420385,0.37324,2679.1,2679.0,3.2078]
[1727106422403,4.10604,2679.1,2679.0,3.2078]
[1727106423095,1.32674,2679.3,2679.1,0.37323]
[1727106423096,0.76691,2679.3,2679.1,0.37323]
[1727106423299,0.76691,2679.3,2679.0,3.2078]
[1727106423496,0.3937,2679.3,2679.2,0.37322]
[1727106423796,0.3888,2679.5,2679.3,0.37321]
[1727106423995,0.3888,2679.5,2679.4,0.37319]
[1727106425995,0.3888,2679.5,2679.4,1.30618]
[1727106426195,1.14665,2679.8,2679.7,0.37315]
[1727106426398,0.37317,2679.6,2679.5,0.37317]
[1727106426601,0.37316,2679.7,2679.6,0.37316]
[1727106427595,1.14665,2679.8,2679.7,0.37315]
[1727106427791,0.37315,2679.7,2679.6,0.37316]
[1727106428604,0.37317,2679.6,2679.5,0.37317]
[1727106428793,0.37316,2679.7,2679.6,0.37316]
[1727106429193,0.7735,2679.8,2679.3,6.18082]
[1727106429401,1.14664,2679.8,2679.7,0.37315]
[1727106429603,0.7735,2679.8,2679.7,0.37315]
[1727106429902,0.3775,2679.9,2679.8,0.37314]
[1727106430111,1.13028,2680.3,2679.8,2.41314]
[1727106430400,1.49628,2680.3,2680.1,0.37309]
[1727106430592,0.37308,2680.2,2680.1,41.17309]
[1727106430996,1.1232,2680.3,2680.2,0.37308]
[1727106431605,4.8544,2680.3,2680.2,0.37308]
[1727106432002,1.1232,2680.3,2680.2,0.37308]
[1727106433001,1.1232,2680.3,2680.1,41.17308]
[1727106433303,1.1232,2680.3,2680.2,0.37308]
[1727106433708,0.366,2680.3,2680.2,41.17308]
[1727106434098,3.9495,2680.7,2680.2,49.779]
[1727106434099,0.7417,2680.7,2680.2,49.779]
[1727106434300,0.3772,2680.8,2680.7,0.37301]
[1727106434604,0.7502,2680.8,2680.6,0.37302]
[1727106434796,0.3772,2680.8,2680.3,2.04]
[1727106434998,0.75021,2680.8,2680.6,0.37303]
[1727106435907,0.7502,2680.8,2680.3,2.04]
[1727106436210,0.3772,2680.8,2680.7,0.37301]
[1727106436510,0.3654,2681.2,2680.7,5.7704]
[1727106436813,0.3819,2681.1,2681.0,0.37297]
[1727106439210,4.1115,2681.1,2680.7,0.3683]
[1727106439408,0.37298,2681.0,2680.7,0.3683]
[1727106439626,0.37298,2681.0,2680.8,0.373]
[1727106439911,0.3819,2681.1,2681.0,0.37297]
[1727106440104,0.3819,2681.1,2680.9,0.37298]
[1727106440298,0.75486,2681.1,2680.9,0.37298]
[1727106440999,0.3819,2681.1,2681.0,0.37297]
[1727106441402,0.75487,2681.1,2680.9,0.37298]
[1727106442402,4.67207687,2681.7,2681.0,3.2078]
[1727106442598,2.97761935,2682.3,2681.7,0.93219]
[1727106442599,0.3728,2682.3,2681.7,0.93219]
[1727106442797,3.43071147,2682.5,2682.4,0.37278]
[1727106442798,0.3757,2682.5,2682.4,0.37278]
[1727106443009,4.45179147,2683.0,2682.4,49.7758]
[1727106443010,1.30746,2683.0,2682.4,49.7758]
[1727106443310,0.37271,2682.9,2682.8,2.04]
[1727106443504,0.7484,2683.0,2682.8,2.04]
[1727106443708,0.3757,2683.0,2682.8,2.41271]
[1727106443905,0.3757,2683.0,2682.8,2.04]
[1727106444100,0.37271,2682.9,2682.8,2.04]
[1727106444306,0.37271,2682.9,2682.5,5.0918]
[1727106444307,1.30481,2683.2,2682.5,2.04]
[1727106444512,0.37276,2682.5,2682.4,40.8]
[1727106445105,4.10076,2682.5,2682.4,40.8]
[1727106445310,0.37285,2681.9,2681.7,5.0935]
[1727106445506,4.13978,2682.3,2681.7,5.0935]
[1727106445808,0.37284,2682.0,2681.7,7.50637]
[1727106446011,0.93202,2682.2,2681.7,2.4215]
[1727106446201,0.37284,2682.0,2681.7,2.4215]
[1727106446407,0.37284,2682.0,2681.7,2.79437]
[1727106446608,0.37285,2681.9,2681.7,2.4215]
[1727106446808,0.37285,2681.9,2681.6,0.37288]
[1727106446809,0.37286,2681.8,2681.6,4.712]
[1727106447013,0.3566,2682.1,2681.5,7.9198]
[1727106447014,0.37289,2681.6,2681.5,7.9198]
[1727106447209,0.37289,2681.6,2681.5,3.2078]
[1727106447512,0.37291,2681.5,2681.2,10.71324]
[1727106447720,0.73848,2681.7,2681.4,0.37291]
[1727106447914,0.3729,2681.6,2681.4,0.37291]
[1727106448118,0.3656,2681.7,2681.4,0.37291]
[1727106448119,0.3656,2681.7,2681.4,2.04]
[1727106448415,0.37289,2681.6,2681.4,2.41291]
[1727106448618,0.73848,2681.7,2681.5,0.3729]
[1727106448814,0.37289,2681.6,2681.4,2.41291]
[1727106449010,0.73848,2681.7,2681.5,0.3729]
[1727106449811,0.3656,2681.7,2681.6,0.37289]
[1727106450006,0.357,2681.8,2681.7,0.37287]
[1727106450322,0.72986,2681.8,2681.7,2.04]
[1727106450622,0.72986,2681.8,2681.7,2.41287]
[1727106450809,0.37286,2681.8,2681.7,2.04]
[1727106451014,0.3564,2682.1,2681.5,5.62069]
[1727106451015,0.37288,2681.7,2681.5,5.62069]
[1727106451208,0.37287,2681.8,2681.6,0.37289]
[1727106451917,0.3926,2682.0,2681.7,2.04]
[1727106452218,0.3564,2682.1,2682.0,0.37283]
[1727106452420,0.3914,2682.4,2681.9,2.04]
[1727106452421,0.37281,2682.2,2681.9,2.04]
[1727106452616,3.2078,2682.4,2682.0,0.75933]
[1727106453323,0.37281,2682.2,2682.0,0.75933]
[1727106453714,3.2078,2682.4,2682.0,0.75933]
[1727106453911,0.3728,2682.2,2682.1,2.04]
[1727106454116,0.37277,2682.5,2682.1,5.2478]
[1727106454321,0.37276,2682.6,2682.4,2.04]
[1727106454627,0.37276,2682.6,2682.4,2.41277]
[1727106454812,0.37276,2682.5,2682.4,2.04]
[1727106455420,0.3823,2682.7,2682.4,2.04]
[1727106455624,3.2078,2683.1,2682.6,2.04]
[1727106455822,0.3796,2683.2,2683.1,0.37268]
[1727106456023,0.3836,2683.7,2683.4,0.37264]
[1727106456322,0.37262,2683.6,2683.4,2.41263]
[1727106456518,0.37262,2683.5,2683.4,2.04]
[1727106456727,0.37262,2683.6,2683.4,42.84]
[1727106456916,0.37262,2683.6,2683.4,43.21263]
[1727106457114,0.93141,2684.0,2683.4,43.21263]
[1727106457320,0.3924,2683.8,2683.5,4.71]
[1727106457617,0.3924,2683.8,2683.4,42.84]
[1727106457818,0.37262,2683.5,2683.4,40.8]
[1727106458018,1.318,2683.7,2683.3,3.2078]
[1727106458019,0.3865,2683.7,2683.3,3.2078]
[1727106458320,0.37263,2683.5,2683.3,3.58045]
[1727106458521,0.37264,2683.4,2683.3,3.2078]
[1727106459023,0.37268,2683.1,2683.0,2.04]
[1727106459224,0.37266,2683.3,2683.1,0.37268]
[1727106459422,0.37266,2683.3,2683.2,2.04]
[1727106459631,0.3865,2683.7,2683.5,0.37261]
[1727106459817,0.37262,2683.6,2683.5,2.04]
[1727106460424,0.37263,2683.5,2683.3,0.37264]
[1727106460727,0.37263,2683.5,2683.1,6.1097]
[1727106460728,0.3865,2683.7,2683.1,6.1097]
[1727106460927,4.13937,2683.5,2683.1,3.2078]
[1727106461129,0.37269,2683.0,2682.9,4.71]
[1727106461617,0.37269,2683.0,2682.8,0.37272]
[1727106461818,0.37271,2682.9,2682.7,45.88273]
[1727106462029,0.37271,2682.9,2682.7,45.51]
[1727106462327,0.37273,2682.8,2682.6,8.28954]
[1727106462728,0.37272,2682.9,2682.7,0.37273]
[1727106463222,0.37271,2682.9,2682.7,0.37273]
[1727106463414,0.3671,2683.0,2682.6,49.08954]
[1727106463622,0.37272,2682.8,2682.6,49.08954]
[1727106463914,0.37274,2682.7,2682.6,44.0078]
[1727106464119,0.37274,2682.7,2682.6,3.2078]
[1727106464319,1.29886,2683.0,2682.6,3.2078]
[1727106464522,0.37274,2682.7,2682.6,3.2078]
[1727106464723,0.3728,2682.3,2682.2,4.709]
[1727106464922,0.37279,2682.3,2682.1,5.44801]
[1727106465826,0.393,2682.5,2681.9,3.2078]
[1727106466030,3.2078,2682.7,2681.9,5.7178]
[1727106466325,0.93181,2682.8,2682.3,0.37278]
[1727106466524,0.37277,2682.5,2682.2,6.0906]
[1727106466714,0.37278,2682.4,2682.2,5.7178]
[1727106466915,1.3161,2682.9,2682.4,0.37277]
[1727106467135,0.37275,2682.7,2682.4,0.37277]
[1727106467333,1.3161,2682.9,2682.4,0.37277]
[1727106467519,0.93181,2682.8,2682.3,0.37279]
[1727106467919,1.3161,2682.9,2682.4,0.37278]
[1727106468121,0.3843,2682.9,2682.2,5.7178]
[1727106468322,0.75702,2682.9,2682.6,0.37274]
[1727106468821,0.75701,2682.9,2682.6,0.37274]
[1727106469430,0.37273,2682.8,2682.5,0.37276]
[1727106469730,0.37273,2682.8,2682.2,5.7178]
[1727106469731,0.93181,2682.8,2682.2,5.7178]
[1727106469923,0.37276,2682.6,2682.3,0.37279]
[1727106470123,0.93181,2682.8,2682.2,3.2078]
[1727106470325,0.37279,2682.4,2682.2,3.2078]
[1727106471117,0.3951,2682.5,2682.3,0.37279]
[1727106471320,0.93181,2682.8,2682.3,0.37278]
[1727106471522,0.37276,2682.6,2682.3,0.37278]
[1727106471927,0.37276,2682.6,2682.4,0.37278]
[1727106472120,0.7794,2682.9,2682.5,0.37276]
[1727106472326,3.2078,2683.1,2682.5,3.2078]
[1727106472530,0.37271,2682.9,2682.6,0.37274]
[1727106472729,1.1392,2683.0,2682.7,0.37273]
[1727106473327,0.93181,2682.8,2682.2,3.58059]
[1727106473630,0.93181,2682.8,2682.2,3.2078]
[1727106473828,0.37277,2682.5,2682.2,3.5806]
[1727106474035,0.383,2682.4,2682.2,3.5806]
[1727106474334,0.37279,2682.3,2682.2,3.2078]
[1727106474831,0.383,2682.4,2682.2,3.5806]
[1727106475032,0.75578,2682.4,2682.2,3.2078]
[1727106475436,0.3728,2682.2,2682.1,40.8]
[1727106475732,0.3728,2682.3,2682.0,0.73102]
[1727106475932,0.383,2682.4,2682.0,0.73102]
[1727106475933,0.37281,2682.2,2682.0,0.3582]
[1727106476123,0.37281,2682.2,2682.0,41.1582]
[1727106476325,0.37281,2682.2,2682.0,44.887]
[1727106476634,0.3728,2682.3,2682.0,45.25983]
[1727106476933,0.3728,2682.3,2682.0,41.53103]
[1727106477145,0.75579,2682.4,2682.1,0.37282]
[1727106477435,0.37282,2682.1,2682.0,40.8]
[1727106477923,0.37282,2682.1,2682.0,44.5288]
[1727106478634,0.37281,2682.2,2682.0,44.5288]
[1727106478932,0.37282,2682.1,2682.0,40.8]
[1727106479235,0.37277,2682.5,2682.0,40.8]
[1727106479425,0.394,2682.4,2682.0,40.8]
[1727106479738,0.37282,2682.1,2682.0,40.8]
[1727106480226,0.74391,2682.2,2682.0,40.8]
[1727106480429,0.37282,2682.1,2682.0,40.8]
[1727106480823,0.37282,2682.1,2681.5,0.7395]
[1727106480824,3.7288,2682.1,2681.5,0.7395]
[1727106481028,0.93217,2681.8,2681.2,7.9038]
[1727106481333,0.37291,2681.5,2681.3,40.8]
[1727106481529,1.3102,2681.7,2681.3,40.8]
[1727106481733,0.75088,2681.7,2681.4,0.3729]
[1727106482034,1.30313,2682.2,2681.4,0.3729]
[1727106482035,3.2078,2682.3,2681.6,0.93223]
[1727106482332,3.5806,2682.3,2682.2,2.04]
[1727106482532,3.2078,2682.3,2682.2,2.04]
[1727106483133,0.37282,2682.2,2681.9,0.37284]
[1727106483434,0.37281,2682.2,2682.0,2.41283]
[1727106483641,0.37282,2682.1,2682.0,2.04]
[1727106483828,3.2078,2682.3,2682.0,2.41283]
[1727106484140,0.3728,2682.3,2682.1,0.37282]
[1727106484331,0.378,2682.5,2682.2,0.3728]
[1727106484535,0.75077,2682.5,2682.2,0.3728]
[1727106484735,0.75077,2682.5,2681.9,5.62812]
[1727106484933,0.37278,2682.4,2681.9,4.696]
[1727106485140,0.75077,2682.5,2682.2,0.3728]
[1727106485443,0.3728,2682.3,2682.0,0.37282]
[1727106485636,0.3728,2682.3,2682.1,0.37282]
[1727106486139,0.37279,2682.4,2682.1,0.37282]
[1727106486435,0.37279,2682.4,2681.9,4.696]
[1727106486639,0.37279,2682.3,2682.1,0.37281]
[1727106487033,0.37278,2682.4,2682.2,0.3728]
[1727106487232,0.378,2682.5,2682.1,3.2078]
[1727106487536,0.378,2682.5,2682.3,0.37278]
[1727106487735,0.378,2682.5,2682.1,3.2078]
[1727106487736,0.378,2682.5,2682.4,0.37278]
[1727106487932,0.378,2682.5,2682.3,0.37278]
[1727106488435,0.75077,2682.5,2682.2,0.3737]
[1727106488639,0.3728,2682.3,2682.1,3.2078]
[1727106488828,0.3728,2682.2,2682.1,3.2078]
[1727106489136,1.33681911,2682.3,2682.0,0.37282]
[1727106489330,0.96401911,2682.3,2682.0,3.2078]
[1727106489530,0.37284,2682.0,2681.7,0.37286]
[1727106489731,0.3728,2681.9,2681.8,0.37286]
[1727106489940,0.3728,2681.9,2681.7,0.37287]
[1727106490133,0.37287,2681.8,2681.6,3.2078]
[1727106490442,0.37287,2681.8,2681.6,3.58068]
[1727106490443,0.763,2681.8,2681.6,3.58068]
[1727106490641,0.763,2681.8,2681.7,0.37287]
[1727106490834,0.3728,2681.9,2681.8,0.37286]
[1727106492043,0.96401911,2682.2,2682.0,0.37282]
[1727106492347,1.71710911,2682.3,2682.0,0.37282]
[1727106492533,1.34431911,2682.3,2681.9,3.2078]
[1727106492835,1.71710911,2682.3,2681.9,3.2078]
[1727106493037,0.3803,2682.3,2682.0,0.37283]
[1727106493246,0.3803,2682.3,2681.9,3.2078]
[1727106493432,0.3803,2682.3,2682.1,0.37282]
[1727106493634,0.3803,2682.3,2682.2,0.3728]
[1727106493837,0.7531,2682.3,2681.9,3.2078]
[1727106494135,0.3803,2682.3,2681.9,0.37283]
[1727106494341,0.04731463,2682.1,2681.9,3.58063]
[1727106494539,0.42013463,2682.1,2681.8,0.37285]
[1727106495139,0.42013463,2682.1,2681.7,0.3889]
[1727106495140,0.37284,2682.0,2681.7,0.76176]
[1727106495333,0.04731463,2681.9,2681.7,0.3889]
[1727106495543,0.04731463,2681.9,2681.6,3.2078]
[1727106495544,0.42016463,2681.9,2681.6,3.58068]
[1727106495854,0.04731463,2681.9,2681.6,3.2078]